bitfinex/quotes_ETHUSD_20250806
["timestamp","ask_amount","ask_price","bid_price","bid_amount"]
[1754498587339,4.233,3650.8,3650.7,0.72680001]
[1754498587540,11.413,3650.8,3650.7,1.16090001]
[1754498587740,14.15212567,3650.8,3650.7,1.16090001]
[1754498588339,11.413,3650.8,3650.7,1.16090001]
[1754498588963,14.15212567,3650.8,3650.7,1.16090001]
[1754498589174,11.413,3650.8,3650.7,1.16090001]
[1754498589479,14.15212567,3650.8,3650.7,1.16090001]
[1754498589686,11.413,3650.8,3650.7,1.16090001]
[1754498589974,14.15212567,3650.8,3650.7,1.16090001]
[1754498590186,14.70212567,3650.8,3650.7,1.16090001]
[1754498590395,20.01491593,3650.8,3650.7,0.25000001]
[1754498590683,15.78191593,3650.8,3650.7,0.25000001]
[1754498590841,20.01491593,3650.8,3650.7,1.16090001]
[1754498591449,23.11491593,3650.8,3650.7,1.16090001]
[1754498593094,23.58091593,3650.8,3650.7,0.25000001]
[1754498594096,23.11491593,3650.8,3650.7,0.25000001]
[1754498594454,23.11491593,3650.8,3650.7,0.68410001]
[1754498594895,23.11491593,3650.8,3650.7,0.25000001]
[1754498597396,16.15592567,3650.8,3650.7,1.16090001]
[1754498597582,20.38692567,3650.8,3650.7,0.25000001]
[1754498597964,21.40292567,3650.8,3650.7,0.25000001]
[1754498598563,21.84032567,3650.8,3650.7,0.25000001]
[1754498598767,24.29825593,3650.8,3650.7,0.25000001]
[1754498599219,23.86085593,3650.8,3650.7,0.25000001]
[1754498602817,23.39485593,3650.8,3650.7,0.25000001]
[1754498603180,23.86085593,3650.8,3650.7,0.25000001]
[1754498604188,23.39485593,3650.8,3650.7,0.25000001]
[1754498604590,23.86085593,3650.8,3650.7,0.25000001]
[1754498607223,16.68085593,3650.8,3650.7,0.25000001]
[1754498609326,2.73942581,3650.4,3650.3,0.002]
[1754498609500,19.99064658,3650.4,3650.3,0.002]
[1754498610006,23.09064658,3650.4,3650.3,0.002]
[1754498610522,18.86064658,3650.4,3650.3,0.002]
[1754498610727,16.34808767,3650.4,3650.3,0.002]
[1754498611110,12.11808767,3650.4,3650.3,0.002]
[1754498611308,16.34808767,3650.4,3650.3,0.9403]
[1754498611818,26.28870844,3650.4,3650.3,0.002]
[1754498612405,26.74930844,3650.4,3650.3,0.002]
[1754498613817,26.28870844,3650.4,3650.3,0.002]
[1754498617450,3.28957591,3650.2,3650.1,0.04]
[1754498617735,13.24723777,3650.2,3650.1,0.04]
[1754498618146,5.73957591,3650.2,3650.1,0.9783]
[1754498618469,2.74012799,3650.8,3650.1,0.9783]
[1754498618632,4.229,3650.7,3650.2,0.9383]
[1754498618833,4.229,3650.7,3650.1,0.04]
[1754498618834,4.229,3650.7,3650.3,1.31009869]
[1754498619086,2.73947103,3650.4,3650.1,0.04]
[1754498619291,4.229,3650.3,3650.1,0.04]
[1754498619495,4.229,3650.2,3650.1,0.04]
[1754498619771,6.96857591,3650.2,3650.1,0.04]
[1754498619961,7.51857591,3650.2,3650.1,0.04]
[1754498620161,7.65537591,3650.2,3650.1,0.9783]
[1754498620360,10.65537591,3650.2,3650.1,0.9783]
[1754498620575,11.99486283,3650.2,3650.1,0.04]
[1754498620882,12.81801074,3650.2,3650.1,0.04]
[1754498621240,15.91801074,3650.2,3650.1,0.04]
[1754498622176,23.09801074,3650.2,3650.1,0.04]
[1754498622962,33.02983151,3650.2,3650.1,0.04]
[1754498623566,25.38923151,3650.2,3650.1,1e-08]
[1754498623748,25.84983151,3650.2,3650.1,1e-08]
[1754498627583,3.28987615,3649.8,3649.7,1e-08]
[1754498627743,15.76117199,3649.7,3649.6,1e-08]
[1754498628070,16.23057199,3649.7,3649.6,1e-08]
[1754498628265,19.33057199,3649.7,3649.6,1e-08]
[1754498628582,19.33057199,3649.7,3649.6,0.47120001]
[1754498628583,23.08917199,3649.7,3649.6,0.47120001]
[1754498628770,25.81783385,3649.7,3649.6,0.47120001]
[1754498629373,12.11861308,3649.7,3649.6,0.47120001]
[1754498629564,16.34661308,3649.7,3649.6,0.93830001]
[1754498631387,10.65475122,3649.7,3649.6,0.93830001]
[1754498631589,5.87675122,3649.7,3649.6,0.93830001]
[1754498631796,2.73995122,3649.7,3649.6,0.93830001]
[1754498631953,13.06795122,3649.7,3649.6,0.93830001]
[1754498632379,9.96795122,3649.7,3649.6,0.93830001]
[1754498632776,5.73995122,3649.7,3649.6,0.93830001]
[1754498632965,9.96795122,3649.7,3649.6,0.93830001]
[1754498633285,5.73995122,3649.7,3649.6,0.93830001]
[1754498633460,9.96795122,3649.7,3649.6,0.93830001]
[1754498633666,5.73995122,3649.7,3649.6,0.93830001]
[1754498633866,9.96795122,3649.7,3649.6,0.93830001]
[1754498634654,11.44680495,3649.7,3649.6,1e-08]
[1754498634856,16.12815172,3649.7,3649.6,1e-08]
[1754498635896,14.54580495,3649.7,3649.6,1e-08]
[1754498636198,22.85842127,3649.7,3648.7,0.4712]
[1754498636402,6.29107779,3648.2,3648.1,0.04]
[1754498636709,10.51807779,3648.2,3648.1,0.04]
[1754498636913,13.61807779,3648.2,3648.1,0.5071]
[1754498638175,13.61807779,3648.2,3648.1,0.04]
[1754498638621,9.39107779,3648.2,3648.1,0.04]
[1754498638777,10.328,3648.2,3648.1,0.9783]
[1754498638975,3.0,3648.2,3648.1,0.9783]
[1754498639189,7.228,3648.2,3648.1,0.9783]
[1754498639390,10.51907779,3648.2,3648.1,0.9783]
[1754498639697,10.51907779,3648.2,3648.1,0.5071]
[1754498640191,3.55,3648.2,3648.1,0.9783]
[1754498640407,7.228,3648.2,3648.1,0.9783]
[1754498640811,4.227,3648.2,3648.1,0.9783]
[1754498641179,7.51807779,3648.2,3648.1,0.5342]
[1754498642287,4.228,3648.2,3648.1,0.9808]
[1754498643095,0.55,3648.2,3648.1,0.5342]
[1754498643290,7.51907779,3648.2,3648.1,0.04]
[1754498643681,8.54508509,3648.2,3648.1,0.04]
[1754498643876,10.51907779,3648.2,3648.1,0.04]
[1754498645150,10.95477779,3648.2,3648.1,1e-08]
[1754498645451,12.09772456,3648.2,3648.1,1e-08]
[1754498646321,12.23452456,3648.2,3648.1,1e-08]
[1754498646632,11.9369257,3648.2,3648.1,1e-08]
[1754498646809,13.51461379,3648.2,3648.1,1e-08]
[1754498647719,13.71606161,3648.2,3648.1,1e-08]
[1754498647918,3.291679,3647.4,3647.3,0.002]
[1754498648152,10.519679,3647.4,3647.3,0.002]
[1754498648311,2.74182934,3647.2,3647.1,1e-08]
[1754498648508,10.65662934,3647.2,3647.1,1e-08]
[1754498648707,11.14822934,3647.2,3647.1,1e-08]
[1754498649148,10.65662934,3647.2,3647.1,1e-08]
[1754498649353,7.9148,3647.2,3647.1,0.49420001]
[1754498649500,10.65662934,3647.2,3647.1,0.94080001]
[1754498649896,6.42862934,3647.2,3647.1,1e-08]
[1754498650108,10.65662934,3647.2,3647.1,1e-08]
[1754498650725,12.53722029,3647.2,3647.1,1e-08]
[1754498650925,12.04562029,3647.2,3647.1,1e-08]
[1754498651124,10.65662934,3647.2,3647.1,0.49420001]
[1754498651324,13.60862934,3647.2,3647.1,0.94080001]
[1754498651527,10.8668,3647.2,3647.1,0.94080001]
[1754498651703,17.83662934,3647.2,3647.1,0.94080001]
[1754498652238,17.83662934,3647.2,3647.1,1e-08]
[1754498652541,20.38606675,3647.2,3647.1,1e-08]
[1754498652922,19.89446675,3647.2,3647.1,1e-08]
[1754498653128,17.83662934,3647.2,3647.1,0.49420001]
[1754498653331,17.83662934,3647.2,3647.1,0.94080001]
[1754498653840,17.83662934,3647.2,3647.1,1e-08]
[1754498655036,13.60862934,3647.2,3647.1,0.94080001]
[1754498655239,17.83762934,3647.2,3647.1,0.94080001]
[1754498655742,17.83762934,3647.2,3647.1,0.49420001]
[1754498658346,19.89556675,3647.2,3647.1,1e-08]
[1754498658640,30.3137702,3647.2,3647.1,1e-08]
[1754498659209,30.66751811,3647.2,3647.1,0.00200001]
[1754498659419,15.66656675,3647.2,3647.1,0.00200001]
[1754498659623,19.89556675,3647.2,3647.1,0.00200001]
[1754498660654,15.66656675,3647.2,3647.1,0.00200001]
[1754498660847,19.89556675,3647.2,3647.1,0.00200001]
[1754498661032,15.66656675,3647.2,3647.1,0.00200001]
[1754498661234,17.83762934,3647.2,3647.1,0.44860001]
[1754498661559,10.3168,3647.2,3647.1,0.94280001]
[1754498661853,17.28762934,3647.2,3647.1,0.94280001]
[1754498662053,17.83762934,3647.2,3647.1,0.94280001]
[1754498662218,10.8668,3647.2,3647.1,0.94280001]
[1754498662416,17.83762934,3647.2,3647.1,0.94280001]
[1754498662955,17.83762934,3647.2,3647.1,0.49620001]
[1754498663967,17.83762934,3647.2,3647.1,0.00200001]
[1754498665824,13.60862934,3647.2,3647.1,0.94280001]
[1754498666062,17.83762934,3647.2,3647.1,0.94280001]
[1754498666443,13.60862934,3647.2,3647.1,0.94280001]
[1754498666971,14.409,3647.2,3647.1,0.94280001]
[1754498667259,11.409,3647.2,3647.1,0.94280001]
[1754498668256,7.18,3647.2,3647.1,0.94280001]
[1754498668466,11.409,3647.2,3647.1,0.94280001]
[1754498669368,7.18,3647.2,3647.1,0.94280001]
[1754498669549,11.409,3647.2,3647.1,0.94280001]
[1754498670549,7.18,3647.2,3647.1,0.94280001]
[1754498670868,11.409,3647.2,3647.1,0.94280001]
[1754498671975,11.409,3647.2,3647.1,0.48000001]
[1754498672381,11.409,3647.2,3647.1,0.95190001]
[1754498672760,7.18,3647.2,3647.1,0.95190001]
[1754498672940,4.229,3647.2,3647.1,0.95190001]
[1754498673146,11.409,3647.2,3647.1,0.95190001]
[1754498673671,11.408,3647.2,3647.1,0.95190001]
[1754498674274,11.408,3647.2,3647.1,0.48000001]
[1754498674488,11.408,3647.2,3647.1,0.00200001]
[1754498674687,11.408,3647.2,3647.1,0.48000001]
[1754498675190,11.408,3647.2,3647.1,0.95190001]
[1754498675488,7.18,3647.2,3647.1,0.95190001]
[1754498675705,11.408,3647.2,3647.1,0.95190001]
[1754498676799,11.408,3647.2,3647.1,0.48000001]
[1754498677646,11.408,3647.2,3647.1,0.95190001]
[1754498678674,11.408,3647.2,3647.1,3.69380453]
[1754498679456,11.408,3647.2,3647.1,3.83060453]
[1754498679651,7.18,3647.2,3647.1,4.48786769]
[1754498679838,11.408,3647.2,3647.1,4.48786769]
[1754498680975,7.18,3647.2,3647.1,4.48786769]
[1754498681181,4.228,3647.4,3647.3,2.74175417]
[1754498681381,0.001,3647.6,3647.4,2.741679]
[1754498681587,4.229,3647.6,3647.5,2.90581986]
[1754498681753,4.229,3647.6,3647.5,3.82830383]
[1754498681971,0.001,3647.6,3647.5,3.82830383]
[1754498682252,0.001,3647.6,3647.5,13.34662331]
[1754498682452,0.001,3647.6,3647.5,13.97647044]
[1754498682780,0.001,3648.0,3647.9,2.74130321]
[1754498682953,0.001,3648.0,3647.9,12.25961969]
[1754498683154,0.001,3648.0,3647.9,13.31890666]
[1754498684596,0.001,3648.0,3647.9,17.54590666]
[1754498684759,0.001,3648.0,3647.9,18.26853084]
[1754498685485,0.001,3648.0,3647.9,4.55062739]
[1754498686289,0.001,3648.0,3647.9,14.04153084]
[1754498687004,0.001,3648.0,3647.9,3.60072739]
[1754498687858,0.001,3648.0,3647.9,2.87810321]
[1754498688057,0.901,3648.0,3647.9,0.1368]
[1754498688307,10.82228681,3648.0,3647.2,6.96781291]
[1754498688510,4.226,3647.9,3647.7,0.1368]
[1754498688712,4.6985,3647.9,3647.7,0.1368]
[1754498688991,7.181,3648.0,3647.7,0.1368]
[1754498689157,11.407,3648.0,3647.8,0.1368]
[1754498689591,11.407,3648.0,3647.1,0.00200001]
[1754498689592,0.9,3647.9,3647.4,2.74164967]
[1754498689780,0.4725,3647.8,3647.7,0.1368]
[1754498690578,0.4275,3647.9,3647.7,0.1368]
[1754498690757,11.407,3648.0,3647.7,0.1368]
[1754498690958,0.9,3647.9,3647.7,0.1368]
[1754498691194,11.407,3648.0,3647.7,0.1368]
[1754498691394,11.8795,3648.0,3647.7,0.1368]
[1754498691558,11.407,3648.0,3647.6,2.74152867]
[1754498691895,11.8795,3648.0,3647.9,0.1368]
[1754498692198,12.307,3648.0,3647.9,0.1368]
[1754498692399,15.04822807,3648.0,3647.9,0.1368]
[1754498692981,2.74140985,3647.8,3647.6,0.1368]
[1754498693324,0.9,3647.9,3647.6,0.1368]
[1754498693532,11.407,3648.0,3647.6,2.87828355]
[1754498693699,11.407,3648.0,3647.8,0.1368]
[1754498693895,7.181,3648.0,3647.9,3.35610321]
[1754498694230,7.181,3648.0,3647.9,3.82800321]
[1754498694544,7.181,3648.0,3647.9,4.48494205]
[1754498695598,0.001,3648.0,3647.9,4.48494205]
[1754498696729,0.001,3649.8,3647.9,4.48494205]
[1754498696933,0.001,3649.8,3648.0,7.1979]
[1754498697250,2.156,3649.7,3648.1,3.0]
[1754498697409,2.156,3649.7,3648.8,2.74062396]
[1754498697410,4.40977379,3649.6,3648.8,2.74062396]
[1754498697613,3.64010138,3649.5,3648.8,2.74062396]
[1754498697816,2.74017884,3649.4,3648.7,2.74069058]
[1754498697996,0.9,3649.4,3648.4,2.74088832]
[1754498698324,4.10725151,3649.3,3648.5,2.74079925]
[1754498698504,3.0,3649.1,3648.6,2.74071444]
[1754498698693,3.5725,3649.1,3648.6,2.74071444]
[1754498698894,3.5725,3649.1,3648.7,2.74069589]
[1754498699116,0.9,3649.0,3648.4,0.478]
[1754498699330,0.9,3649.0,3648.3,2.74092816]
[1754498699554,0.9,3649.0,3648.4,2.74086163]
[1754498699760,0.9,3649.0,3648.4,2.74092752]
[1754498699959,2.74067211,3648.8,3648.1,2.74109915]
[1754498700259,0.9,3648.7,3648.0,7.00421842]
[1754498700558,0.9,3648.7,3648.2,2.74106731]
[1754498700755,0.934,3648.6,3648.1,2.74113035]
[1754498700900,4.263,3648.8,3648.0,4.263]
[1754498700901,0.934,3648.5,3648.0,7.00421072]
[1754498701236,0.4745,3648.7,3648.3,2.74093373]
[1754498701435,4.263,3648.8,3648.0,5.76565749]
[1754498701436,0.934,3648.6,3648.0,5.76565749]
[1754498701816,0.934,3648.6,3648.2,2.74104017]
[1754498702111,0.55,3648.5,3647.1,0.43840001]
[1754498702313,4.22487456,3648.5,3647.2,7.48309716]
[1754498702504,4.22487456,3648.5,3647.8,2.74133539]
[1754498702854,2.74106184,3648.3,3647.6,0.4803]
[1754498703132,4.261,3648.3,3647.8,2.7413236]
[1754498703336,4.261,3648.3,3647.7,2.74143043]
[1754498703520,4.7355,3648.3,3647.7,3.22173043]
[1754498703722,4.261,3648.3,3647.9,2.74125311]
[1754498703896,4.261,3648.3,3647.7,3.22173043]
[1754498704097,4.261,3648.3,3647.8,0.69174489]
[1754498704332,4.7355,3648.3,3647.7,3.22173175]
[1754498704525,4.26,3648.4,3648.0,2.74118063]
[1754498704737,4.259,3648.4,3647.7,0.9167]
[1754498704945,4.259,3648.4,3647.8,0.36581563]
[1754498705147,4.7325,3648.3,3647.8,0.36581563]
[1754498705350,4.7325,3648.3,3647.9,2.74128811]
[1754498705514,4.7325,3648.3,3647.8,0.36581563]
[1754498705906,0.934,3648.2,3647.2,2.74175699]
[1754498706017,3.0,3647.8,3647.2,2.74176905]
[1754498706347,0.934,3647.7,3647.2,2.74176905]
[1754498706654,0.4745,3647.6,3647.1,2.74387237]
[1754498706865,0.1368,3648.0,3647.6,2.74148195]
[1754498707044,4.259,3648.0,3647.6,0.4803]
[1754498707253,4.259,3648.0,3647.9,0.1368]
[1754498707564,4.259,3648.0,3647.1,0.00200001]
[1754498707565,6.21560772,3648.2,3647.8,0.1368]
[1754498707715,4.26,3648.1,3647.8,0.1368]
[1754498708453,4.262,3648.2,3647.9,0.9167]
[1754498708657,4.262,3648.2,3647.8,3.35134482]
[1754498708865,4.262,3648.2,3648.1,0.1368]
[1754498709218,3.0,3648.4,3648.1,0.1368]
[1754498709454,7.262,3648.5,3648.1,0.6171]
[1754498709756,4.262,3648.5,3648.3,0.1368]
[1754498710116,4.7365,3648.5,3648.3,0.1368]
[1754498710342,3.934,3648.4,3648.3,0.1368]
[1754498710546,3.0,3648.4,3648.3,0.1368]
[1754498710857,7.26,3648.4,3648.3,0.1368]
[1754498711653,0.4595,3648.8,3648.3,0.1368]
[1754498711654,4.26,3648.5,3648.3,0.1368]
[1754498711862,0.4595,3648.8,3648.3,0.95293104]
[1754498712028,3.0,3648.8,3648.3,0.6171]
[1754498712352,4.258,3648.7,3648.6,0.1368]
[1754498712529,4.258,3648.8,3648.6,0.1368]
[1754498712728,3.0,3648.9,3648.6,0.1368]
[1754498712930,4.259,3649.3,3648.7,1.0535]
[1754498713130,0.001,3649.3,3648.9,0.1368]
[1754498713353,4.26,3649.2,3648.9,0.4803]
[1754498713557,4.26,3649.2,3649.1,2.87717547]
[1754498713760,0.001,3649.3,3649.2,2.74032664]
[1754498713950,0.001,3649.3,3649.2,3.65702664]
[1754498714655,0.001,3649.3,3649.2,3.22062664]
[1754498715255,0.001,3649.3,3649.2,3.65702664]
[1754498715464,0.001,3649.3,3649.2,4.0611668]
[1754498715667,0.001,3649.3,3649.2,4.08857006]
[1754498715996,0.001,3649.3,3649.2,4.1979668]
[1754498717189,0.001,3649.3,3649.2,4.22537006]
[1754498717591,0.001,3649.3,3649.2,4.1979668]
[1754498718291,0.001,3649.6,3649.5,2.74010138]
[1754498718490,0.001,3649.6,3649.5,7.61111391]
[1754498718696,0.001,3649.6,3649.5,7.74791391]
[1754498718903,0.001,3649.6,3649.5,8.66461391]
[1754498722176,0.04,3649.9,3649.8,2.73987615]
[1754498722177,1e-08,3649.9,3649.8,2.73987615]
[1754498722376,1e-08,3649.9,3649.8,10.16007491]
[1754498722584,1e-08,3649.9,3649.8,11.4151108]
[1754498722901,1e-08,3650.2,3650.1,2.73965096]
[1754498723063,1e-08,3650.2,3650.1,7.02304746]
[1754498723265,1e-08,3650.2,3650.1,8.04915096]
[1754498725106,1e-08,3650.2,3650.1,11.04915096]
[1754498725310,1e-08,3650.4,3650.3,2.73950086]
[1754498725507,1e-08,3650.4,3650.3,10.01989586]
[1754498725712,1e-08,3650.4,3650.3,11.04600086]
[1754498726669,1e-08,3650.4,3650.3,6.79300086]
[1754498726893,1e-08,3650.4,3650.3,11.04600086]
[1754498727093,1e-08,3650.4,3650.3,11.65601339]
[1754498727324,0.93400001,3650.4,3650.3,7.73831339]
[1754498727519,0.93400001,3650.4,3650.3,7.12830086]
[1754498729818,0.93400001,3650.4,3650.3,0.1368]
[1754498730107,0.93400001,3650.4,3650.3,4.3888]
[1754498730310,1e-08,3650.4,3650.3,7.12830086]
[1754498731803,1e-08,3650.4,3650.3,4.3888]
[1754498731988,0.91390001,3650.4,3650.3,7.12830086]
[1754498732191,0.46620001,3650.4,3650.3,7.12830086]
[1754498732391,0.91390001,3650.4,3650.3,4.3888]
[1754498732708,0.46620001,3650.4,3650.3,7.12830086]
[1754498732890,0.46620001,3650.4,3650.3,0.1368]
[1754498733283,0.46620001,3650.4,3650.3,2.87630086]
[1754498733811,1e-08,3650.4,3650.3,2.87630086]
[1754498734006,1e-08,3650.4,3650.3,3.87944304]
[1754498735186,1e-08,3650.4,3650.3,4.80144304]
[1754498735478,0.46620001,3650.4,3650.3,8.09804804]
[1754498735686,1e-08,3650.4,3650.3,8.09804804]
[1754498735886,1e-08,3650.4,3650.3,8.56054804]
[1754498736397,1e-08,3650.4,3650.3,8.09804804]
[1754498737993,1e-08,3650.4,3650.3,8.09704804]
[1754498737994,0.91390001,3650.4,3650.3,8.09704804]
[1754498738820,0.91390001,3650.4,3650.3,7.12130086]
[1754498738986,0.91390001,3650.4,3650.3,2.87630086]
[1754498739185,0.91390001,3650.4,3650.3,7.12130086]
[1754498740231,0.46620001,3650.4,3650.3,7.12130086]
[1754498740882,1e-08,3650.4,3650.3,7.58380086]
[1754498741278,1e-08,3650.4,3650.3,8.04330086]
[1754498742284,1e-08,3650.4,3650.3,11.04330086]
[1754498743800,1e-08,3650.4,3650.3,8.04330086]
[1754498746010,1e-08,3650.4,3650.3,7.58380086]
[1754498746209,1e-08,3650.4,3650.3,7.12130086]
[1754498746400,1e-08,3650.4,3650.3,8.19358924]
[1754498746805,0.91390001,3650.4,3650.3,7.11630086]
[1754498748996,1e-08,3650.4,3650.3,7.11630086]
[1754498751254,0.91390001,3650.4,3650.3,7.11630086]
[1754498751855,1e-08,3650.4,3650.3,7.11630086]
[1754498752056,1e-08,3650.4,3650.3,8.14813907]
[1754498753439,1e-08,3650.4,3650.3,8.61063907]
[1754498754220,1e-08,3650.4,3650.3,9.07013907]
[1754498755023,0.91390001,3650.4,3650.3,8.14213907]
[1754498755237,0.91390001,3650.4,3650.3,7.11030086]
[1754498755437,1e-08,3650.4,3650.3,7.11030086]
[1754498755724,1e-08,3650.4,3650.3,8.03230086]
[1754498755925,1e-08,3650.4,3650.3,7.11030086]
[1754498756764,0.46620001,3650.4,3650.3,7.11030086]
[1754498757264,1e-08,3650.4,3650.3,7.11030086]
[1754498757427,1e-08,3650.4,3650.3,8.09528907]
[1754498758053,1e-08,3650.4,3650.3,8.34528907]
[1754498758868,1e-08,3650.4,3650.3,8.80778907]
[1754498759068,1e-08,3650.4,3650.3,8.67098907]
[1754498759234,1e-08,3650.4,3650.3,9.26728907]
[1754498760133,1e-08,3650.4,3650.3,4.11128907]
[1754498760371,0.46620001,3650.4,3650.3,7.35830086]
[1754498761233,1e-08,3650.4,3650.3,7.35830086]
[1754498761431,0.91780001,3650.4,3650.3,0.3868]
[1754498761636,0.91780001,3650.4,3650.3,4.6188]
[1754498763975,0.91780001,3650.4,3650.3,7.35830086]
[1754498764178,0.91780001,3650.4,3650.3,4.6188]
[1754498764934,8.09780001,3650.4,3650.3,4.6188]
[1754498765748,8.09780001,3650.4,3650.3,7.35830086]
[1754498766835,7.63590001,3650.4,3650.3,7.35830086]
[1754498768354,8.09780001,3650.4,3650.3,4.6188]
[1754498769297,8.09780001,3650.4,3650.3,7.35830086]
[1754498769684,8.09780001,3650.4,3650.3,4.6188]
[1754498770209,8.09780001,3650.4,3650.3,7.35830086]
[1754498770985,8.09780001,3650.4,3650.3,0.3868]
[1754498771185,11.64710582,3650.4,3650.3,0.25]
[1754498773309,8.09780001,3650.4,3650.3,0.25]
[1754498773483,7.18000001,3650.4,3650.3,0.25]
[1754498773898,7.63590001,3650.4,3650.3,4.478]
[1754498774073,8.09780001,3650.4,3650.3,4.478]
[1754498774412,8.09780001,3650.4,3650.3,0.25]
[1754498776172,7.18000001,3650.4,3650.3,2.98950086]
[1754498777047,7.18000001,3650.4,3650.3,0.25]
[1754498777452,7.18000001,3650.4,3650.3,7.21750086]
[1754498778165,7.18000001,3650.4,3650.3,4.478]
[1754498778166,7.63590001,3650.4,3650.3,4.478]
[1754498779250,8.09780001,3650.4,3650.3,0.25]
[1754498780473,0.91780001,3650.4,3650.3,0.25]
[1754498781567,3.65722582,3650.4,3650.3,0.25]
[1754498786960,0.91780001,3650.4,3650.3,0.25]
[1754498787163,1e-08,3650.4,3650.3,0.25]
[1754498787339,4.22800001,3650.4,3650.3,0.25]
[1754498787756,7.42332582,3650.4,3650.3,0.25]
[1754498787989,5.14580001,3650.4,3650.3,0.25]
[1754498788583,7.88522582,3650.4,3650.3,0.25]
[1754498789276,5.14580001,3650.4,3650.3,0.25]
[1754498789478,0.45590001,3650.4,3650.3,0.25]
[1754498789652,4.22800001,3650.4,3650.3,0.25]
[1754498789974,6.96742582,3650.4,3650.3,0.25]
[1754498791187,7.46052582,3650.4,3650.3,0.25]
[1754498791400,7.88892582,3650.4,3650.3,0.25]
[1754498791866,10.88892582,3650.4,3650.3,0.25]
[1754498792066,13.09944934,3650.4,3650.3,0.25]
[1754498792290,13.23624934,3650.4,3650.3,0.25]
[1754498792661,16.33624934,3650.4,3650.3,0.25]
[1754498792993,5.73957591,3650.2,3650.1,0.002]
[1754498793190,21.2868008,3650.2,3650.1,0.002]
[1754498793389,5.73980109,3649.9,3649.8,0.002]
[1754498793590,9.96780109,3649.9,3649.8,0.002]
[1754498793887,10.88930109,3649.9,3649.8,0.002]
[1754498794099,11.02610109,3649.9,3649.8,0.002]
[1754498794282,13.75476295,3649.9,3649.8,0.002]
[1754498795896,24.58476295,3649.9,3649.8,1e-08]
[1754498796096,24.58476295,3649.9,3649.4,1e-08]
[1754498796097,2.74010138,3649.5,3649.4,1e-08]
[1754498796305,10.95289913,3649.5,3649.4,1e-08]
[1754498796495,11.87439913,3649.5,3649.4,1e-08]
[1754498796801,15.52439913,3649.5,3649.4,1e-08]
[1754498797804,3.29032664,3649.2,3649.1,1e-08]
[1754498797978,2.74107779,3648.2,3647.2,0.4506]
[1754498798179,9.96907779,3648.2,3647.9,0.1388]
[1754498798500,13.56217779,3648.2,3647.9,0.1388]
[1754498799001,13.06907779,3648.2,3648.1,0.4906]
[1754498799302,8.84107779,3648.2,3648.1,0.4906]
[1754498799482,7.328,3648.2,3648.1,0.94]
[1754498799799,6.96907779,3648.2,3648.1,0.94]
[1754498800006,4.228,3648.2,3648.1,1.0768]
[1754498800179,2.74102837,3648.3,3648.1,1.0768]
[1754498800379,9.96902837,3648.3,3648.2,0.9]
[1754498800880,5.74102837,3648.3,3648.2,0.9]
[1754498801979,5.74082237,3648.6,3648.2,1.0368]
[1754498802282,5.74082237,3648.6,3648.5,0.1368]
[1754498802283,6.96877815,3648.6,3648.5,0.1368]
[1754498802491,2.74077815,3648.6,3648.5,0.1368]
[1754498802683,4.228,3648.8,3648.5,1.0368]
[1754498802878,2.74077362,3648.7,3648.1,0.04]
[1754498803092,2.74077362,3648.7,3648.6,0.9]
[1754498803299,2.74077362,3648.7,3648.6,1.0368]
[1754498803601,2.74077362,3648.7,3648.6,0.5874]
[1754498805913,4.228,3649.0,3648.6,1.0368]
[1754498806204,4.228,3649.0,3648.7,0.9]
[1754498806409,2.74059862,3648.9,3648.8,0.9]
[1754498806593,2.74059862,3648.9,3648.8,0.4494]
[1754498806768,2.74059862,3648.9,3648.8,0.5862]
[1754498807167,2.74059862,3648.9,3648.8,0.5874]
[1754498807410,2.74059862,3648.9,3648.8,0.1368]
[1754498807906,2.74059862,3648.9,3648.8,0.5874]
[1754498808406,2.74059862,3648.9,3648.8,0.1368]
[1754498808791,2.74059862,3648.9,3648.8,0.5874]
[1754498808792,6.96859862,3648.9,3648.8,0.5874]
[1754498808992,6.96859862,3648.9,3648.8,0.1368]
[1754498809516,6.96855194,3648.9,3648.1,0.04]
[1754498809716,2.74107779,3648.2,3648.1,0.04]
[1754498809874,6.96907779,3648.2,3648.1,0.04]
[1754498810072,6.96907779,3648.2,3648.1,0.1768]
[1754498810485,11.85985239,3648.2,3648.1,0.04]
[1754498810688,3.29122807,3648.0,3647.9,1e-08]
[1754498810977,10.75602807,3648.0,3647.9,1e-08]
[1754498811324,14.67752807,3648.0,3647.9,1e-08]
[1754498811477,17.40618993,3648.0,3647.9,1e-08]
[1754498812120,3.29145351,3647.7,3647.6,0.002]
[1754498812279,6.29182934,3647.2,3647.1,1e-08]
[1754498812478,10.65662934,3647.2,3647.1,1e-08]
[1754498812685,11.57812934,3647.2,3647.1,1e-08]
[1754498812937,16.11011669,3647.2,3647.1,1e-08]
[1754498815027,15.56111669,3647.2,3647.1,1e-08]
[1754498816490,8.84182934,3647.2,3647.1,1e-08]
[1754498816690,13.07082934,3647.2,3647.1,1e-08]
[1754498817107,8.84182934,3647.2,3647.1,1e-08]
[1754498817309,13.07082934,3647.2,3647.1,1e-08]
[1754498817487,6.1,3647.2,3647.1,1e-08]
[1754498817696,4.229,3647.2,3647.1,0.90000001]
[1754498817891,2.74128866,3648.0,3647.1,0.90000001]
[1754498818133,3.0,3647.7,3647.2,3.64182918]
[1754498818291,4.229,3647.6,3647.3,1.55225866]
[1754498818495,7.229,3647.6,3647.5,0.1368]
[1754498818694,7.229,3647.6,3647.5,1.0368]
[1754498818930,7.229,3647.6,3647.5,0.5874]
[1754498819316,7.229,3647.6,3647.5,0.1368]
[1754498820297,2.741679,3647.4,3647.1,1e-08]
[1754498820524,5.74182934,3647.2,3647.1,1e-08]
[1754498820896,6.68522934,3647.2,3647.1,1e-08]
[1754498821795,7.23522934,3647.2,3647.1,1e-08]
[1754498821996,6.68522934,3647.2,3647.1,1e-08]
[1754498822200,9.97082934,3647.2,3647.1,1e-08]
[1754498822418,10.10762934,3647.2,3647.1,1e-08]